fUST/lending_fUST_20240430
["ID","MTS","AMOUNT","RATE_DAILY","PERIOD"]
[324946755,1714457460771,-544.61577018,0.00032941,7]
[324946756,1714457460781,-417.0,0.00032981,2]
[324946757,1714457460790,-150.0,0.00032981,2]
[324946758,1714457460799,-168.0,0.00033,2]
[324946759,1714457460808,-168.0,0.00033,2]
[324946760,1714457460817,-157.73975448,0.00033087,7]
[324946761,1714457460826,-349.77929273,0.0003315,7]
[324946762,1714457460835,-500.0,0.0003315,7]
[324946763,1714457460844,-573.99,0.0003315,7]
[324946764,1714457460853,-500.0,0.0003315,7]
[324946765,1714457460862,-500.0,0.0003315,7]
[324946766,1714457460872,-500.0,0.0003315,7]
[324946767,1714457460881,-500.0,0.0003315,7]
[324946768,1714457460890,-500.0,0.0003315,7]
[324946769,1714457460899,-500.0,0.0003315,7]
[324946770,1714457460908,-899.84,0.0003315,7]
[324946771,1714457460917,-501.85628397,0.0003315,7]
[324946772,1714457460926,-500.0,0.0003315,7]
[324946773,1714457460935,-500.0,0.0003315,7]
[324946774,1714457460944,-500.0,0.0003315,7]
[324946775,1714457460953,-500.0,0.0003315,7]
[324946776,1714457460962,-151.81257834,0.0003315,7]
[324946777,1714457460971,-500.0,0.0003315,7]
[324946778,1714457460980,-500.0,0.0003315,7]
[324946779,1714457460989,-500.0,0.0003315,7]
[324946780,1714457460999,-513.6,0.0003315,7]
[324946781,1714457461008,-605.54,0.0003315,7]
[324946782,1714457461017,-532.84,0.0003315,7]
[324946783,1714457461026,-505.64,0.0003315,7]
[324946784,1714457461035,-603.01,0.0003315,7]
[324946785,1714457461045,-500.0,0.0003315,7]
[324946786,1714457461055,-500.0,0.0003315,7]
[324946787,1714457461064,-500.0,0.0003315,7]
[324946788,1714457461073,-500.0,0.0003315,7]
[324946789,1714457461082,-500.0,0.0003315,7]
[324946790,1714457461091,-500.0,0.0003315,7]
[324946791,1714457461100,-500.0,0.0003315,7]
[324946792,1714457461110,-500.0,0.0003315,7]
[324946793,1714457461119,-500.0,0.0003315,7]
[324946794,1714457461129,-500.0,0.0003315,7]
[324946795,1714457461138,-500.0,0.0003315,7]
[324946796,1714457461147,-500.0,0.0003315,7]
[324946797,1714457461156,-500.0,0.0003315,7]
[324946798,1714457461166,-518.31,0.0003315,7]
[324946799,1714457461175,-500.0,0.0003315,7]
[324946800,1714457461183,-500.0,0.0003315,7]
[324946801,1714457461193,-500.0,0.0003315,7]
[324946802,1714457461202,-500.0,0.0003315,7]
[324946803,1714457461211,-500.0,0.0003315,7]
[324946804,1714457461220,-500.0,0.0003315,7]
[324946805,1714457461229,-500.0,0.0003315,7]
[324946806,1714457461239,-500.0,0.0003315,7]
[324946807,1714457461248,-500.0,0.0003315,7]
[324946808,1714457461257,-500.0,0.0003315,7]
[324946809,1714457461267,-500.0,0.0003315,30]
[324946810,1714457461276,-500.0,0.0003315,7]
[324946811,1714457461285,-799.99,0.0003315,7]
[324946812,1714457461295,-500.0,0.0003315,7]
[324946813,1714457461304,-513.42333922,0.0003315,7]
[324946814,1714457461314,-874.16,0.0003315,7]
[324946815,1714457461323,-500.0,0.0003315,7]
[324946816,1714457461332,-500.0,0.0003315,7]
[324946817,1714457461342,-974.74,0.0003315,7]
[324946818,1714457461351,-151.0,0.0003315,2]
[324946819,1714457461362,-500.0,0.0003315,7]
[324946820,1714457461375,-764.82,0.0003315,7]
[324946821,1714457461384,-500.0,0.0003315,3]
[324946822,1714457461394,-500.0,0.0003315,7]
[324946823,1714457461404,-500.0,0.0003315,7]
[324946824,1714457461413,-1008.03,0.0003315,7]
[324946825,1714457461424,-500.0,0.0003315,7]
[324946826,1714457461434,-599.82,0.0003315,7]
[324946827,1714457461445,-871.87,0.0003315,7]
[324946828,1714457461535,-500.0,0.0003315,7]
[324946829,1714457461555,-513.93,0.0003315,7]
[324946830,1714457461564,-500.0,0.0003315,2]
[324946831,1714457461573,-172.68244233,0.0003315,7]
[324946832,1714457461582,-170.62705614,0.0003315,7]
[324946833,1714457461591,-716.63,0.0003315,7]
[324946834,1714457461599,-500.0,0.0003315,7]
[324946835,1714457461609,-300.0,0.0003315,7]
[324946836,1714457461618,-500.0,0.0003315,7]
[324946837,1714457461627,-500.0,0.0003315,7]
[324946838,1714457461636,-500.0,0.0003315,7]
[324946839,1714457461645,-500.0,0.0003315,7]
[324946840,1714457461654,-500.0,0.0003315,7]
[324946841,1714457461663,-500.0,0.0003315,7]
[324946842,1714457461672,-500.0,0.0003315,7]
[324946843,1714457461681,-1006.99,0.0003315,7]
[324946844,1714457461690,-500.0,0.0003315,7]
[324946845,1714457461700,-500.0,0.0003315,7]
[324946846,1714457461709,-157.48287745,0.0003315,7]
[324946847,1714457461719,-159.048063,0.0003315,2]
[324946848,1714457461727,-500.0,0.0003315,7]
[324946849,1714457461737,-159.048063,0.0003315,2]
[324946850,1714457461746,-500.0,0.0003315,7]
[324946851,1714457461755,-500.0,0.0003315,7]
[324946852,1714457461765,-559.33,0.0003315,7]
[324946853,1714457461774,-500.0,0.0003315,7]
[324946854,1714457461783,-509.77,0.0003315,7]
[324946855,1714457461792,-240.260412,0.0003315,2]
[324946856,1714457461802,-500.0,0.0003315,7]
[324946857,1714457461812,-500.0,0.0003315,7]
[324946858,1714457461821,-240.260405,0.0003315,2]
[324946859,1714457461830,-500.0,0.0003315,7]
[324946860,1714457461839,-728.48,0.0003315,7]
[324946861,1714457461848,-638.59,0.0003315,7]
[324946862,1714457461858,-890.43,0.0003315,7]
[324946863,1714457461867,-500.0,0.0003315,7]
[324946864,1714457461876,-364.65446932,0.0003315,7]
[324946865,1714457461885,-500.0,0.0003315,7]
[324946866,1714457461894,-500.0,0.0003315,7]
[324946867,1714457461903,-500.0,0.0003315,7]
[324946868,1714457461913,-500.0,0.0003315,7]
[324946869,1714457461922,-500.0,0.0003315,7]
[324946870,1714457461931,-672.86,0.0003315,7]
[324946871,1714457461940,-500.0,0.0003315,7]
[324946872,1714457461949,-500.0,0.0003315,7]
[324946873,1714457461958,-645.5,0.0003315,7]
[324946874,1714457461967,-720.2,0.0003315,7]
[324946875,1714457461975,-500.0,0.0003315,7]
[324946876,1714457461984,-500.0,0.0003315,7]
[324946877,1714457461993,-500.0,0.0003315,7]
[324946878,1714457462003,-500.0,0.0003315,7]
[324946879,1714457462012,-500.0,0.0003315,7]
[324946880,1714457462020,-500.0,0.0003315,7]
[324946881,1714457462029,-503.98,0.0003315,7]
[324946882,1714457462039,-500.0,0.0003315,7]
[324946883,1714457462048,-394.10459241,0.0003315,7]
[324946884,1714457462058,-500.0,0.0003315,7]
[324946885,1714457462067,-500.0,0.0003315,7]
[324946886,1714457462077,-500.0,0.0003315,7]
[324946887,1714457462086,-652.87,0.0003315,7]
[324946888,1714457462096,-500.0,0.0003315,7]
[324946889,1714457462106,-893.45,0.0003315,7]
[324946890,1714457462115,-630.12,0.0003315,7]
[324946891,1714457462124,-500.0,0.0003315,7]
[324946892,1714457462134,-500.0,0.0003315,7]
[324946893,1714457462143,-500.0,0.0003315,7]
[324946894,1714457462153,-500.0,0.0003315,7]
[324946895,1714457462163,-500.0,0.0003315,7]
[324946896,1714457462172,-500.0,0.0003315,7]
[324946897,1714457462181,-500.95072127,0.0003315,7]
[324946898,1714457462190,-890.42,0.0003315,7]
[324946899,1714457462200,-500.0,0.0003315,7]
[324946900,1714457462209,-500.0,0.0003315,7]
[324946901,1714457462218,-500.0,0.0003315,7]
[324946902,1714457462228,-500.0,0.0003315,7]
[324946903,1714457462237,-500.0,0.0003315,7]
[324946904,1714457462247,-892.37,0.0003315,7]
[324946905,1714457462256,-500.0,0.0003315,7]
[324946906,1714457462265,-571.67,0.0003315,7]
[324946907,1714457462275,-657.48,0.0003315,7]
[324946908,1714457462284,-728.25,0.0003315,7]
[324946909,1714457462294,-639.64,0.0003315,7]
[324946910,1714457462303,-500.0,0.0003315,7]
[324946911,1714457462313,-500.0,0.0003315,7]
[324946912,1714457462322,-565.58,0.0003315,7]
[324946913,1714457462331,-500.0,0.0003315,7]
[324946914,1714457462341,-500.0,0.0003315,7]
[324946915,1714457462350,-500.0,0.0003315,7]
[324946916,1714457462360,-512.91,0.0003315,7]
[324946917,1714457462373,-555.04,0.0003315,7]
[324946918,1714457462382,-500.0,0.0003315,7]
[324946919,1714457462392,-707.6,0.0003315,7]
[324946920,1714457462402,-500.0,0.0003315,7]
[324946921,1714457462412,-500.0,0.0003315,7]
[324946922,1714457462421,-539.55,0.0003315,7]
[324946923,1714457462430,-503.26541033,0.0003315,7]
[324946924,1714457462439,-500.0,0.0003315,7]
[324946925,1714457462450,-500.0,0.0003315,7]
[324946926,1714457462460,-500.0,0.0003315,7]
[324946927,1714457462469,-500.0,0.0003315,7]
[324946928,1714457462478,-500.0,0.0003315,7]
[324946929,1714457462487,-185.3645537,0.0003315,7]
[324946930,1714457462496,-500.0,0.0003315,7]
[324946931,1714457462505,-500.0,0.0003315,7]
[324946932,1714457462514,-500.0,0.0003315,7]
[324946933,1714457462523,-820.95,0.0003315,7]
[324946934,1714457462532,-821.44,0.0003315,7]
[324946935,1714457462542,-685.27,0.0003315,7]
[324946936,1714457462551,-500.0,0.0003315,7]
[324946937,1714457462560,-500.0,0.0003315,7]
[324946938,1714457462568,-500.0,0.0003315,7]
[324946939,1714457462578,-500.0,0.0003315,7]
[324946940,1714457462587,-500.0,0.0003315,7]
[324946941,1714457462596,-928.29,0.0003315,7]
[324946942,1714457462604,-787.88,0.0003315,7]
[324946943,1714457462613,-554.17,0.0003315,7]
[324946944,1714457462622,-500.0,0.0003315,7]
[324946945,1714457462631,-1095.77,0.0003315,7]
[324946946,1714457462640,-500.0,0.0003315,7]
[324946947,1714457462649,-500.0,0.0003315,7]
[324946948,1714457462659,-985.67,0.0003315,7]
[324946949,1714457462668,-500.0,0.0003315,7]
[324946950,1714457462677,-500.0,0.0003315,7]
[324946951,1714457462686,-500.0,0.0003315,7]
[324946952,1714457462695,-500.0,0.0003315,7]
[324946953,1714457462704,-500.0,0.0003315,7]
[324946954,1714457462713,-500.0,0.0003315,7]
[324946955,1714457462724,-500.0,0.0003315,7]
[324946956,1714457462733,-500.0,0.0003315,7]
[324946957,1714457462742,-500.0,0.0003315,7]
[324946958,1714457462752,-577.75,0.0003315,7]
[324946959,1714457462762,-500.0,0.0003315,7]
[324946960,1714457462771,-500.0,0.0003315,7]
[324946961,1714457462780,-500.0,0.0003315,7]
[324946962,1714457462790,-500.0,0.0003315,7]
[324946963,1714457462799,-500.0,0.0003315,7]
[324946964,1714457462808,-654.2,0.0003315,7]
[324946965,1714457462818,-500.0,0.0003315,7]
[324946966,1714457462827,-500.0,0.0003315,7]
[324946967,1714457462835,-500.0,0.0003315,7]
[324946968,1714457462845,-500.0,0.0003315,7]
[324946969,1714457462854,-549.39878885,0.0003315,7]
[324946970,1714457462863,-500.0,0.0003315,7]
[324946971,1714457462872,-530.17,0.0003315,7]
[324946972,1714457462882,-556.7,0.0003315,7]
[324946973,1714457462891,-611.4,0.0003315,7]
[324946974,1714457462900,-500.0,0.0003315,7]
[324946975,1714457462909,-556.41,0.0003315,7]
[324946976,1714457462918,-500.0,0.0003315,7]
[324946977,1714457462927,-786.77,0.0003315,7]
[324946978,1714457462936,-725.92,0.0003315,7]
[324946979,1714457462945,-1136.93,0.0003315,7]
[324946980,1714457462954,-544.02,0.0003315,7]
[324946981,1714457462963,-500.0,0.0003315,7]
[324946982,1714457462973,-506.78,0.0003315,7]
[324946983,1714457462983,-501.45490789,0.0003315,7]
[324946984,1714457462992,-500.0,0.0003315,7]
[324946985,1714457463002,-500.0,0.0003315,7]
[324946986,1714457463012,-545.68,0.0003315,7]
[324946987,1714457463022,-527.95,0.0003315,7]
[324946988,1714457463034,-500.0,0.0003315,7]
[324946989,1714457463045,-714.47,0.0003315,7]
[324946990,1714457463054,-7971.4,0.0003315,7]
[324946991,1714457463064,-500.0,0.0003315,7]
[324946992,1714457463074,-500.0,0.0003315,7]
[324946993,1714457463083,-500.0,0.0003315,7]
[324946994,1714457463092,-1524.12,0.0003315,7]
[324946995,1714457463101,-500.0,0.0003315,7]
[324946996,1714457463111,-500.0,0.0003315,7]
[324946997,1714457463120,-415.0,0.00033226,2]
[324946998,1714457463130,-544.61577018,0.00033384,7]
[324946999,1714457463139,-152.90057792,0.00033407,7]
[324947000,1714457463148,-500.0,0.00033424,7]
[324947001,1714457463158,-573.99,0.00033424,7]
[324947002,1714457463167,-500.50447908,0.00033424,7]
[324947003,1714457463176,-500.0,0.00033424,7]
[324947004,1714457463185,-500.0,0.00033424,7]
[324947005,1714457463195,-500.0,0.00033424,7]
[324947006,1714457463294,-500.0,0.00033424,7]
[324947007,1714457463305,-500.0,0.00033424,7]
[324947008,1714457463315,-899.84,0.00033424,7]
[324947009,1714457463324,-500.0,0.00033424,7]
[324947010,1714457463333,-500.0,0.00033424,7]
[324947011,1714457463342,-500.0,0.00033424,7]
[324947012,1714457463352,-266.24564074,0.00033424,7]
[324947013,1714457463363,-646.58489573,0.00033424,7]
[324947014,1714457463376,-500.0,0.00033424,7]
[324947015,1714457463386,-179.21676421,0.00033424,7]
[324947016,1714457463396,-513.6,0.00033424,7]
[324947017,1714457463406,-605.54,0.00033424,7]
[324947018,1714457463415,-532.84,0.00033424,7]
[324947019,1714457463424,-505.64,0.00033424,7]
[324947020,1714457463434,-603.01,0.00033424,7]
[324947021,1714457463444,-500.0,0.00033424,7]
[324947022,1714457463453,-511.95940733,0.00033424,7]
[324947023,1714457463463,-500.0,0.00033424,7]
[324947024,1714457463472,-500.0,0.00033424,7]
[324947025,1714457463481,-500.0,0.00033424,7]
[324947026,1714457463492,-500.0,0.00033424,7]
[324947027,1714457463501,-500.0,0.00033424,7]
[324947028,1714457463510,-500.0,0.00033424,7]
[324947029,1714457463520,-500.0,0.00033424,7]
[324947030,1714457463529,-500.0,0.00033424,7]
[324947031,1714457463538,-590.94507233,0.00033424,7]
[324947032,1714457463550,-504.2274337,0.00033424,7]
[324947033,1714457463559,-500.0,0.00033424,7]
[324947034,1714457463568,-518.31,0.00033424,7]
[324947035,1714457463577,-500.0,0.00033424,7]
[324947036,1714457463587,-500.0,0.00033424,7]
[324947037,1714457463596,-174.77654285,0.00033424,7]
[324947038,1714457463606,-500.0,0.00033424,7]
[324947039,1714457463616,-500.0,0.00033424,7]
[324947040,1714457463625,-501.51858115,0.00033424,7]
[324947041,1714457463635,-500.0,0.00033424,7]
[324947042,1714457463644,-500.0,0.00033424,7]
[324947043,1714457463653,-500.0,0.00033424,7]
[324947044,1714457463662,-501.11229134,0.00033424,7]
[324947045,1714457463671,-500.0,0.00033424,30]
[324947046,1714457463681,-500.0,0.00033424,7]
[324947047,1714457463691,-799.99,0.00033424,7]
[324947048,1714457463700,-529.40185955,0.00033424,7]
[324947049,1714457463710,-874.16,0.00033424,7]
[324947050,1714457463719,-500.0,0.00033424,7]
[324947051,1714457463728,-500.0,0.00033424,7]
[324947052,1714457463738,-974.74,0.00033424,7]
[324947053,1714457463747,-500.0,0.00033424,7]
[324947054,1714457463757,-151.0,0.00033424,2]
[324947055,1714457463766,-764.82,0.00033424,7]
[324947056,1714457463775,-500.0,0.00033424,3]
[324947057,1714457463784,-308.55681412,0.00033424,7]
[324947058,1714457463794,-500.0,0.00033424,7]
[324947059,1714457463803,-1008.03,0.00033424,7]
[324947060,1714457463813,-500.0,0.00033424,7]
[324947061,1714457463823,-599.82,0.00033424,7]
[324947062,1714457463832,-500.0,0.00033424,7]
[324947063,1714457463842,-513.93,0.00033424,7]
[324947064,1714457463851,-500.0,0.00033424,2]
[324947065,1714457463860,-871.87,0.00033424,7]
[324947066,1714457463870,-716.63,0.00033424,7]
[324947067,1714457463879,-500.0,0.00033424,7]
[324947068,1714457463888,-300.0,0.00033424,7]
[324947069,1714457463898,-500.0,0.00033424,7]
[324947070,1714457463907,-178.64436234,0.00033424,7]
[324947071,1714457463916,-500.0,0.00033424,7]
[324947072,1714457463925,-500.0,0.00033424,7]
[324947073,1714457463934,-500.0,0.00033424,7]
[324947074,1714457463943,-500.0,0.00033424,7]
[324947075,1714457463952,-500.0,0.00033424,7]
[324947076,1714457463961,-1006.99,0.00033424,7]
[324947077,1714457463970,-500.0,0.00033424,7]
[324947078,1714457463980,-500.0,0.00033424,7]
[324947079,1714457463989,-159.048063,0.00033424,2]
[324947080,1714457463998,-500.0,0.00033424,7]
[324947081,1714457464007,-159.048066,0.00033424,2]
[324947082,1714457464017,-500.0,0.00033424,7]
[324947083,1714457464026,-500.0,0.00033424,7]
[324947084,1714457464035,-559.33,0.00033424,7]
[324947085,1714457464045,-500.0,0.00033424,7]
[324947086,1714457464055,-509.77,0.00033424,7]
[324947087,1714457464064,-500.0,0.00033424,7]
[324947088,1714457464076,-500.0,0.00033424,7]
[324947089,1714457464086,-501.9525827,0.00033424,7]
[324947090,1714457464096,-728.48,0.00033424,7]
[324947091,1714457464106,-638.59,0.00033424,7]
[324947092,1714457464116,-890.43,0.00033424,7]
[324947093,1714457464126,-500.0,0.00033424,7]
[324947094,1714457464135,-500.0,0.00033424,7]
[324947095,1714457464145,-500.0,0.00033424,7]
[324947096,1714457464154,-500.0,0.00033424,7]
[324947097,1714457464164,-500.0,0.00033424,7]
[324947098,1714457464173,-600.40468049,0.00033424,7]
[324947099,1714457464182,-672.86,0.00033424,7]
[324947100,1714457464191,-500.0,0.00033424,7]
[324947101,1714457464201,-500.0,0.00033424,7]
[324947102,1714457464210,-645.5,0.00033424,7]
[324947103,1714457464219,-720.2,0.00033424,7]
[324947104,1714457464228,-500.0,0.00033424,7]
[324947105,1714457464238,-294.25177426,0.00033424,7]
[324947106,1714457464247,-500.0,0.00033424,7]
[324947107,1714457464256,-500.0,0.00033424,7]
[324947108,1714457464266,-500.0,0.00033424,7]
[324947109,1714457464275,-500.0,0.00033424,7]
[324947110,1714457464284,-503.98,0.00033424,7]
[324947111,1714457464295,-500.0,0.00033424,7]
[324947112,1714457464304,-500.0,0.00033424,7]
[324947113,1714457464314,-500.0,0.00033424,7]
[324947114,1714457464323,-500.0,0.00033424,7]
[324947115,1714457464333,-652.87,0.00033424,7]
[324947116,1714457464342,-500.0,0.00033424,7]
[324947117,1714457464351,-893.45,0.00033424,7]
[324947118,1714457464362,-630.12,0.00033424,7]
[324947119,1714457464374,-500.0,0.00033424,7]
[324947120,1714457464383,-500.0,0.00033424,7]
[324947121,1714457464393,-323.14432132,0.00033424,7]
[324947122,1714457464402,-500.0,0.00033424,7]
[324947123,1714457464414,-500.0,0.00033424,7]
[324947124,1714457464423,-500.0,0.00033424,7]
[324947125,1714457464432,-890.42,0.00033424,7]
[324947126,1714457464441,-500.0,0.00033424,7]
[324947127,1714457464452,-500.0,0.00033424,7]
[324947128,1714457464461,-500.0,0.00033424,7]
[324947129,1714457464470,-500.0,0.00033424,7]
[324947130,1714457464479,-500.0,0.00033424,7]
[324947131,1714457464488,-892.37,0.00033424,7]
[324947132,1714457464498,-500.0,0.00033424,7]
[324947133,1714457464507,-571.67,0.00033424,7]
[324947134,1714457464517,-657.48,0.00033424,7]
[324947135,1714457464527,-728.25,0.00033424,7]
[324947136,1714457464536,-639.64,0.00033424,7]
[324947137,1714457464546,-500.0,0.00033424,7]
[324947138,1714457464556,-500.0,0.00033424,7]
[324947139,1714457464565,-565.58,0.00033424,7]
[324947140,1714457464574,-182.13363266,0.00033424,7]
[324947141,1714457464584,-500.0,0.00033424,7]
[324947142,1714457464593,-500.0,0.00033424,7]
[324947143,1714457464602,-512.91,0.00033424,7]
[324947144,1714457464611,-555.04,0.00033424,7]
[324947145,1714457464621,-500.0,0.00033424,7]
[324947146,1714457464631,-707.6,0.00033424,7]
[324947147,1714457464640,-227.7699957,0.00033424,7]
[324947148,1714457464649,-500.0,0.00033424,7]
[324947149,1714457464658,-539.55,0.00033424,7]
[324947150,1714457464667,-235.83809882,0.00033424,7]
[324947151,1714457464677,-500.0,0.00033424,7]
[324947152,1714457464686,-500.0,0.00033424,7]
[324947153,1714457464695,-500.0,0.00033424,7]
[324947154,1714457464705,-500.0,0.00033424,7]
[324947155,1714457464714,-500.0,0.00033424,7]
[324947156,1714457464724,-500.0,0.00033424,7]
[324947157,1714457464733,-500.0,0.00033424,7]
[324947158,1714457464743,-820.95,0.00033424,7]
[324947159,1714457464752,-821.44,0.00033424,7]
[324947160,1714457464761,-685.27,0.00033424,7]
[324947161,1714457464771,-541.93212074,0.00033424,7]
[324947162,1714457464780,-500.0,0.00033424,7]
[324947163,1714457464789,-500.0,0.00033424,7]
[324947164,1714457464800,-500.0,0.00033424,7]
[324947165,1714457464809,-500.0,0.00033424,7]
[324947166,1714457464818,-928.29,0.00033424,7]
[324947167,1714457464827,-787.88,0.00033424,7]
[324947168,1714457464837,-554.17,0.00033424,7]
[324947169,1714457464925,-500.0,0.00033424,7]
[324947170,1714457464934,-1095.77,0.00033424,7]
[324947171,1714457464943,-500.0,0.00033424,7]
[324947172,1714457464952,-500.0,0.00033424,7]
[324947173,1714457464962,-985.67,0.00033424,7]
[324947174,1714457464971,-500.0,0.00033424,7]
[324947175,1714457464980,-500.0,0.00033424,7]
[324947176,1714457464990,-500.0,0.00033424,7]
[324947177,1714457465000,-500.0,0.00033424,7]
[324947178,1714457465010,-345.24510885,0.00033424,7]
[324947179,1714457465020,-500.0,0.00033424,7]
[324947180,1714457465030,-500.0,0.00033424,7]
[324947181,1714457465040,-500.0,0.00033424,7]
[324947182,1714457465050,-500.0,0.00033424,7]
[324947183,1714457465060,-577.75,0.00033424,7]
[324947184,1714457465070,-500.0,0.00033424,7]
[324947185,1714457465080,-500.0,0.00033424,7]
[324947186,1714457465090,-500.0,0.00033424,7]
[324947187,1714457465100,-500.0,0.00033424,7]
[324947188,1714457465110,-500.0,0.00033424,7]
[324947189,1714457465119,-654.2,0.00033424,7]
[324947190,1714457465129,-500.0,0.00033424,7]
[324947191,1714457465139,-500.0,0.00033424,7]
[324947192,1714457465149,-500.0,0.00033424,7]
[324947193,1714457465159,-500.0,0.00033424,7]
[324947194,1714457465170,-500.0,0.00033424,7]
[324947195,1714457465180,-530.17,0.00033424,7]
[324947196,1714457465190,-556.7,0.00033424,7]
[324947197,1714457465199,-611.4,0.00033424,7]
[324947198,1714457465209,-500.0,0.00033424,7]
[324947199,1714457465219,-556.41,0.00033424,7]
[324947200,1714457465228,-500.0,0.00033424,7]
[324947201,1714457465238,-786.77,0.00033424,7]
[324947202,1714457465248,-725.92,0.00033424,7]
[324947203,1714457465257,-1136.93,0.00033424,7]
[324947204,1714457465267,-544.02,0.00033424,7]
[324947205,1714457465277,-500.0,0.00033424,7]
[324947206,1714457465286,-506.78,0.00033424,7]
[324947207,1714457465297,-500.0,0.00033424,7]
[324947208,1714457465306,-500.0,0.00033424,7]
[324947209,1714457465316,-545.68,0.00033424,7]
[324947210,1714457465326,-527.95,0.00033424,7]
[324947211,1714457465335,-500.0,0.00033424,7]
[324947212,1714457465345,-714.47,0.00033424,7]
[324947213,1714457465354,-7971.4,0.00033424,7]
[324947214,1714457465369,-500.0,0.00033424,7]
[324947215,1714457465379,-340.01326738,0.00033424,7]
[324947216,1714457465389,-500.0,0.00033424,7]
[324947217,1714457465398,-1524.12,0.00033424,7]
[324947218,1714457465409,-500.0,0.00033424,7]
[324947219,1714457465419,-500.0,0.00033424,7]
[324947220,1714457465429,-150.0,0.00033499,2]
[324947221,1714457465438,-501.85093738,0.00033698,7]
[324947222,1714457465448,-573.99,0.00033698,7]
[324947223,1714457465458,-500.0,0.00033698,7]
[324947224,1714457465467,-500.0,0.00033698,7]
[324947225,1714457465477,-500.0,0.00033698,7]
[324947226,1714457465486,-500.0,0.00033698,7]
[324947227,1714457465495,-518.38763873,0.00033698,7]
[324947228,1714457465504,-899.84,0.00033698,7]
[324947229,1714457465514,-500.0,0.00033698,7]
[324947230,1714457465523,-500.0,0.00033698,7]
[324947231,1714457465533,-501.9259632,0.00033698,7]
[324947232,1714457465543,-513.6,0.00033698,7]
[324947233,1714457465552,-605.54,0.00033698,7]
[324947234,1714457465562,-532.84,0.00033698,7]
[324947235,1714457465571,-505.64,0.00033698,7]
[324947236,1714457465581,-603.01,0.00033698,7]
[324947237,1714457465591,-500.0,0.00033698,7]
[324947238,1714457465600,-500.0,0.00033698,7]
[324947239,1714457465610,-500.0,0.00033698,7]
[324947240,1714457465619,-500.0,0.00033698,7]
[324947241,1714457465629,-501.68200846,0.00033698,7]
[324947242,1714457465638,-500.0,0.00033698,7]
[324947243,1714457465647,-502.61846026,0.00033698,7]
[324947244,1714457465656,-500.0,0.00033698,7]
[324947245,1714457465665,-500.0,0.00033698,7]
[324947246,1714457465674,-500.0,0.00033698,7]
[324947247,1714457465683,-518.31,0.00033698,7]
[324947248,1714457465693,-509.89363167,0.00033698,7]
[324947249,1714457465702,-500.0,0.00033698,7]
[324947250,1714457465711,-500.0,0.00033698,7]
[324947251,1714457465720,-500.0,0.00033698,7]
[324947252,1714457465730,-500.0,0.00033698,7]
[324947253,1714457465739,-500.0,0.00033698,7]
[324947254,1714457465749,-500.0,0.00033698,30]